[Event "FIDE Women World Rapid 2024"]
[Site "New York"]
[Date "2024.12.27"]
[Round "8.13"]
[White "Kulon, Klaudia"]
[Black "Mkrtchyan, Mariam"]
[Result "1-0"]
[ECO "E05"]
[WhiteElo "2391"]
[BlackElo "2325"]
[Annotator "ChessBase"]
[PlyCount "97"]
[EventDate "2024.12.14"]
[EventType "swiss"]
[EventCountry "USA"]
[SourceTitle "playchess.com"]
[Source "ChessBase"]
[SourceQuality "1"]
[TimeControl "900+10"]

1. c4 {[%emt 0:00:01]} e6 {[%emt 0:00:02]} 2. g3 {[%emt 0:00:01]} d5 {[%emt 0:00:02]} 3. Bg2 {[%emt 0:00:01]} Nf6 {[%emt 0:00:02]} 4. Nf3 {[%emt 0:00:02]} Be7 {[%emt 0:00:01]} 5. O-O {[%emt 0:00:01]} O-O {[%emt 0:00:03]} 6. d4 {[%emt 0:00:01]} dxc4 {[%emt 0:00:03]} 7. Qc2 {[%emt 0:00:01]} a6 {[%emt 0:00:05]} 8. Qxc4 {[%emt 0:00:02]} b5 {[%emt 0:00:02]} 9. Qc2 {[%emt 0:00:03]} Bb7 {[%emt 0:00:02]} 10. Bd2 {[%emt 0:00:01]} Ra7 {[%emt 0:00:02]} 11. a4 {[%emt 0:00:23]} Nc6 {[%emt 0:01:56]} 12. axb5 {[%emt 0:00:18]} axb5 {[%emt 0:00:29]} 13. Rxa7 {[%emt 0:00:19]} Nxa7 {[%emt 0:00:01]} 14. Nc3 {[%emt 0:00:01]} c5 {[%emt 0:01:18]} 15. dxc5 {[%emt 0:00:22]} Bxc5 {[%emt 0:00:10]} 16. Ne5 {[%emt 0:02:18]} Bxg2 {[%emt 0:01:00]} 17. Kxg2 {[%emt 0:00:03]} Qa8+ {[%emt 0:01:08]} 18. f3 {[%emt 0:00:12]} Bd4 {[%emt 0:02:20]} 19. Nd3 {[%emt 0:00:21]} Qb7 {[%emt 0:01:11]} 20. Qb3 {[%emt 0:00:16]} Rb8 {[%emt 0:00:44]} 21. Bf4 {[%emt 0:00:26]} Rc8 {[%emt 0:00:19]} 22. Ra1 {[%emt 0:00:29]} h6 {[%emt 0:03:06]} 23. h4 {[%emt 0:00:42]} Bxc3 {[%emt 0:00:30]} 24. bxc3 {[%emt 0:00:01]} Nd5 {[%emt 0:00:00]} 25. Bd2 {[%emt 0:00:12]} Qb6 {[%emt 0:00:12]} 26. Ne5 {[%emt 0:01:13]} Ne3+ {[%emt 0:00:49]} 27. Kh3 {[%emt 0:00:28]} Nc4 {[%emt 0:00:46]} 28. Nxc4 {[%emt 0:00:10]} Rxc4 {[%emt 0:00:01]} 29. Qa3 {[%emt 0:00:02]} Rc7 {[%emt 0:00:15]} 30. c4 {[%emt 0:00:03]} Qb7 {[%emt 0:02:51]} 31. Bf4 {[%emt 0:00:40]} Rd7 {[%emt 0:00:11]} 32. Rb1 {[%emt 0:00:01]} Qc6 {[%emt 0:00:34]} 33. Be3 {[%emt 0:00:09]} Qb7 {[%emt 0:00:10]} 34. Qa5 {[%emt 0:00:42]} Kh7 {[%emt 0:00:12]} 35. cxb5 {[%emt 0:00:13]} Nc8 {[%emt 0:00:02]} 36. Qa6 {[%emt 0:00:32]} Qb8 {[%emt 0:00:03]} 37. Rc1 {[%emt 0:00:33]} Ne7 {[%emt 0:00:07]} 38. b6 {[%emt 0:00:36]} Nf5 {[%emt 0:00:10]} 39. Bf2 {[%emt 0:00:01]} Qe5 {[%emt 0:00:22]} 40. b7 {[%emt 0:00:15]} Qb2 {[%emt 0:00:01]} 41. b8=Q {[%emt 0:01:52]} Qxb8 {[%emt 0:00:07]} 42. g4 {[%emt 0:00:01]} Ne7 {[%emt 0:00:22]} 43. h5 {[%emt 0:00:14]} Nd5 {[%emt 0:00:14]} 44. Bg3 {[%emt 0:00:21]} Qb3 {[%emt 0:00:13]} 45. Qa8 {[%emt 0:00:41]} Qb7 {[%emt 0:00:05]} 46. Qa3 {[%emt 0:00:18]} Nb6 {[%emt 0:00:11]} 47. Rb1 {[%emt 0:00:31]} Qc6 {[%emt 0:00:13]} 48. Qa6 {[%emt 0:00:00]} Rb7 {[%emt 0:00:11]} 49. Bf2 {[%emt 0:00:00]} 1-0

[Event "FIDE Women World Rapid 2024"]
[Site "New York"]
[Date "2024.12.27"]
[Round "8.14"]
[White "Zhao, Xue"]
[Black "Charkhalashvili, Inga"]
[Result "1-0"]
[ECO "A12"]
[WhiteElo "2442"]
[BlackElo "2240"]
[Annotator "ChessBase"]
[PlyCount "105"]
[EventDate "2024.12.14"]
[EventType "swiss"]
[EventCountry "USA"]
[SourceTitle "playchess.com"]
[Source "ChessBase"]
[SourceQuality "1"]
[TimeControl "900+10"]

1. Nf3 {[%emt 0:00:05]} Nf6 {[%emt 0:00:06]} 2. e3 {[%emt 0:00:04]} d5 {[%emt 0:00:24]} 3. b3 {[%emt 0:00:08]} g6 {[%emt 0:00:04]} 4. c4 {[%emt 0:01:24]} c6 {[%emt 0:00:08]} 5. Bb2 {[%emt 0:01:01]} Bg7 {[%emt 0:00:02]} 6. cxd5 {[%emt 0:01:19]} cxd5 {[%emt 0:00:03]} 7. Bb5+ {[%emt 0:00:07]} Bd7 {[%emt 0:00:10]} 8. Be2 {[%emt 0:00:01]} O-O {[%emt 0:00:03]} 9. d3 {[%emt 0:00:13]} Nc6 {[%emt 0:00:56]} 10. Nbd2 {[%emt 0:00:02]} Qb8 {[%emt 0:00:35]} 11. Rc1 {[%emt 0:01:09]} a5 {[%emt 0:00:56]} 12. O-O {[%emt 0:00:59]} Rd8 {[%emt 0:01:39]} 13. a3 {[%emt 0:03:20]} Bf5 {[%emt 0:02:25]} 14. Rc2 {[%emt 0:01:19]} e5 {[%emt 0:01:23]} 15. Qa1 {[%emt 0:00:02]} Ne8 {[%emt 0:00:29]} 16. e4 {[%emt 0:01:24]} dxe4 {[%emt 0:01:21]} 17. dxe4 {[%emt 0:00:02]} Bg4 {[%emt 0:00:10]} 18. Bb5 {[%emt 0:00:08]} Bxf3 {[%emt 0:01:33]} 19. Nxf3 {[%emt 0:00:02]} Na7 {[%emt 0:00:21]} 20. Bc4 {[%emt 0:00:23]} Nc6 {[%emt 0:00:16]} 21. Rd1 {[%emt 0:02:20]} Rxd1+ {[%emt 0:00:40]} 22. Qxd1 {[%emt 0:00:02]} Nd6 {[%emt 0:01:32]} 23. Bd5 {[%emt 0:00:17]} Ra6 {[%emt 0:00:17]} 24. h4 {[%emt 0:00:27]} Qe8 {[%emt 0:00:31]} 25. Rd2 {[%emt 0:00:26]} Qe7 {[%emt 0:00:33]} 26. g3 {[%emt 0:01:16]} Bf6 {[%emt 0:01:34]} 27. Kg2 {[%emt 0:00:03]} Kg7 {[%emt 0:00:11]} 28. Qc2 {[%emt 0:00:39]} Nb5 {[%emt 0:00:25]} 29. Bc4 {[%emt 0:00:41]} Rb6 {[%emt 0:00:05]} 30. Qd1 {[%emt 0:00:19]} Nbd4 {[%emt 0:00:09]} 31. Nxd4 {[%emt 0:00:20]} exd4 {[%emt 0:00:21]} 32. Bd5 {[%emt 0:00:04]} Rb5 {[%emt 0:00:16]} 33. Qf3 {[%emt 0:00:16]} Ne5 {[%emt 0:00:14]} 34. Qd1 {[%emt 0:00:03]} h5 {[%emt 0:00:27]} 35. a4 {[%emt 0:00:05]} Rxd5 {[%emt 0:00:25]} 36. exd5 {[%emt 0:00:02]} Ng4 {[%emt 0:00:12]} 37. Bxd4 {[%emt 0:00:07]} Bxd4 {[%emt 0:00:10]} 38. Rxd4 {[%emt 0:00:01]} Qd6 {[%emt 0:00:10]} 39. Qd2 {[%emt 0:00:13]} b6 {[%emt 0:00:05]} 40. Qf4 {[%emt 0:00:09]} Ne5 {[%emt 0:00:03]} 41. Re4 {[%emt 0:00:10]} f6 {[%emt 0:00:01]} 42. Rd4 {[%emt 0:00:01]} Kh7 {[%emt 0:00:18]} 43. Qc1 {[%emt 0:00:03]} Kg7 {[%emt 0:00:11]} 44. Qc8 {[%emt 0:00:01]} Kf7 {[%emt 0:00:22]} 45. Rd2 {[%emt 0:00:07]} Ke7 {[%emt 0:00:09]} 46. Qb7+ {[%emt 0:00:07]} Kf8 {[%emt 0:00:10]} 47. Rc2 {[%emt 0:00:04]} Nd7 {[%emt 0:00:05]} 48. Rc7 {[%emt 0:00:16]} Ke7 {[%emt 0:00:07]} 49. Qc6 {[%emt 0:00:03]} g5 {[%emt 0:00:11]} 50. Kf1 {[%emt 0:00:48]} gxh4 {[%emt 0:00:02]} 51. gxh4 {[%emt 0:00:03]} f5 {[%emt 0:00:03]} 52. Kg2 {[%emt 0:00:03]} f4 {[%emt 0:00:10]} 53. Kf3 {[%emt 0:00:03]} 1-0

[Event "FIDE Women World Rapid 2024"]
[Site "New York"]
[Date "2024.12.27"]
[Round "8.14"]
[White "Mamedjarova, Turkan"]
[Black "Priyanka Nutakki"]
[Result "1-0"]
[ECO "D35"]
[WhiteElo "2197"]
[BlackElo "2296"]
[Annotator "ChessBase"]
[PlyCount "119"]
[EventDate "2024.12.14"]
[EventType "swiss"]
[EventCountry "USA"]
[SourceTitle "playchess.com"]
[Source "ChessBase"]
[SourceQuality "1"]
[TimeControl "900+10"]

1. d4 {[%emt 0:00:01]} d5 {[%emt 0:00:01]} 2. c4 {[%emt 0:00:02]} e6 {[%emt 0:00:02]} 3. cxd5 {[%emt 0:00:10]} exd5 {[%emt 0:00:01]} 4. Nc3 {[%emt 0:00:01]} Nf6 {[%emt 0:00:07]} 5. Bg5 {[%emt 0:00:01]} Be7 {[%emt 0:00:01]} 6. e3 {[%emt 0:00:01]} h6 {[%emt 0:00:07]} 7. Bh4 {[%emt 0:00:03]} O-O {[%emt 0:00:05]} 8. Bd3 {[%emt 0:00:02]} c6 {[%emt 0:00:02]} 9. Nge2 {[%emt 0:00:05]} Ne8 {[%emt 0:01:06]} 10. Bg3 {[%emt 0:00:22]} Nd6 {[%emt 0:00:02]} 11. Qc2 {[%emt 0:00:05]} Re8 {[%emt 0:00:02]} 12. O-O {[%emt 0:00:12]} Bf8 {[%emt 0:00:01]} 13. Nf4 {[%emt 0:04:10]} a5 {[%emt 0:00:10]} 14. Rfe1 {[%emt 0:00:24]} Na6 {[%emt 0:00:06]} 15. a3 {[%emt 0:00:05]} b5 {[%emt 0:01:06]} 16. f3 {[%emt 0:00:42]} Nc4 {[%emt 0:00:14]} 17. e4 {[%emt 0:00:55]} dxe4 {[%emt 0:03:48]} 18. Bxe4 {[%emt 0:00:06]} Bd7 {[%emt 0:01:00]} 19. d5 {[%emt 0:01:00]} Qb6+ {[%emt 0:03:06]} 20. Kh1 {[%emt 0:00:14]} Nc5 {[%emt 0:01:25]} 21. Bf2 {[%emt 0:01:05]} Qc7 {[%emt 0:00:02]} 22. dxc6 {[%emt 0:00:39]} Bxc6 {[%emt 0:00:01]} 23. Nxb5 {[%emt 0:01:26]} Bxb5 {[%emt 0:00:32]} 24. Bxa8 {[%emt 0:00:21]} Rxa8 {[%emt 0:00:01]} 25. Nd5 {[%emt 0:00:10]} Qb7 {[%emt 0:00:20]} 26. Rad1 {[%emt 0:00:37]} Ne6 {[%emt 0:00:44]} 27. Qe4 {[%emt 0:00:27]} Nd6 {[%emt 0:00:02]} 28. Qg4 {[%emt 0:00:06]} Bc6 {[%emt 0:00:37]} 29. Nf6+ {[%emt 0:01:06]} Kh8 {[%emt 0:00:01]} 30. Nh5 {[%emt 0:00:01]} Ng5 {[%emt 0:00:46]} 31. h4 {[%emt 0:00:23]} f5 {[%emt 0:01:31]} 32. Qg3 {[%emt 0:00:32]} Qf7 {[%emt 0:00:05]} 33. Rxd6 {[%emt 0:00:29]} Bxd6 {[%emt 0:02:10]} 34. Qxd6 {[%emt 0:00:02]} Qxh5 {[%emt 0:00:51]} 35. Qxc6 {[%emt 0:00:05]} Rb8 {[%emt 0:00:11]} 36. Kg1 {[%emt 0:00:38]} Nh7 {[%emt 0:00:22]} 37. Re7 {[%emt 0:00:35]} Nf6 {[%emt 0:00:08]} 38. Rxg7 {[%emt 0:00:33]} Kxg7 {[%emt 0:00:14]} 39. Qc7+ {[%emt 0:00:02]} Nd7 {[%emt 0:00:06]} 40. Bd4+ {[%emt 0:00:18]} Kg8 {[%emt 0:00:13]} 41. Qxd7 {[%emt 0:00:04]} Qf7 {[%emt 0:00:05]} 42. Qd6 {[%emt 0:00:06]} Re8 {[%emt 0:00:24]} 43. Qxh6 {[%emt 0:00:07]} Qh7 {[%emt 0:00:03]} 44. Qg5+ {[%emt 0:00:04]} Kf7 {[%emt 0:00:37]} 45. Qf6+ {[%emt 0:00:36]} Kg8 {[%emt 0:00:00]} 46. b4 {[%emt 0:00:10]} axb4 {[%emt 0:00:00]} 47. axb4 {[%emt 0:00:00]} Re1+ {[%emt 0:00:07]} 48. Kf2 {[%emt 0:00:21]} Re7 {[%emt 0:00:09]} 49. b5 {[%emt 0:00:22]} Re8 {[%emt 0:00:14]} 50. b6 {[%emt 0:00:16]} Rf8 {[%emt 0:00:06]} 51. Qg5+ {[%emt 0:00:14]} Kf7 {[%emt 0:00:01]} 52. b7 {[%emt 0:00:01]} Rb8 {[%emt 0:00:15]} 53. Qf6+ {[%emt 0:00:21]} Kg8 {[%emt 0:00:01]} 54. Qe6+ {[%emt 0:00:15]} Qf7 {[%emt 0:00:01]} 55. Qc8+ {[%emt 0:00:01]} Qf8 {[%emt 0:00:18]} 56. Qc7 {[%emt 0:00:23]} Re8 {[%emt 0:00:24]} 57. Be5 {[%emt 0:00:11]} Qh6 {[%emt 0:00:13]} 58. Qc4+ {[%emt 0:00:18]} Kf8 {[%emt 0:00:10]} 59. Qb4+ {[%emt 0:00:04]} Kg8 {[%emt 0:00:06]} 60. b8=Q {[%emt 0:00:09]} 1-0

[Event "FIDE Women World Rapid 2024"]
[Site "New York"]
[Date "2024.12.27"]
[Round "8.15"]
[White "Danielian, Elina"]
[Black "Huang, Qian"]
[Result "1/2-1/2"]
[ECO "B09"]
[WhiteElo "2398"]
[BlackElo "2370"]
[Annotator "ChessBase"]
[PlyCount "137"]
[EventDate "2024.12.14"]
[EventType "swiss"]
[EventCountry "USA"]
[SourceTitle "playchess.com"]
[Source "ChessBase"]
[SourceQuality "1"]
[TimeControl "900+10"]

1. d4 {[%emt 0:00:02]} d6 {[%emt 0:00:03]} 2. e4 {[%emt 0:00:05]} Nf6 {[%emt 0:00:06]} 3. Nc3 {[%emt 0:00:01]} g6 {[%emt 0:00:05]} 4. f4 {[%emt 0:00:08]} Bg7 {[%emt 0:00:10]} 5. Nf3 {[%emt 0:00:01]} c5 {[%emt 0:00:08]} 6. dxc5 {[%emt 0:00:26]} Qa5 {[%emt 0:00:01]} 7. Bd3 {[%emt 0:00:27]} Qxc5 {[%emt 0:00:04]} 8. Qe2 {[%emt 0:00:06]} Nc6 {[%emt 0:00:14]} 9. a3 {[%emt 0:00:36]} O-O {[%emt 0:00:33]} 10. Bd2 {[%emt 0:02:33]} Bg4 {[%emt 0:02:35]} 11. Be3 {[%emt 0:01:33]} Qa5 {[%emt 0:00:05]} 12. O-O {[%emt 0:01:29]} d5 {[%emt 0:03:04]} 13. b4 {[%emt 0:05:41]} Qd8 {[%emt 0:00:10]} 14. e5 {[%emt 0:00:27]} d4 {[%emt 0:02:27]} 15. exf6 {[%emt 0:00:01]} Bxf6 {[%emt 0:00:26]} 16. Ne4 {[%emt 0:01:12]} dxe3 {[%emt 0:00:02]} 17. Nxf6+ {[%emt 0:00:01]} exf6 {[%emt 0:00:02]} 18. Qxe3 {[%emt 0:00:03]} Re8 {[%emt 0:00:49]} 19. Qf2 {[%emt 0:00:23]} Bxf3 {[%emt 0:00:45]} 20. Qxf3 {[%emt 0:00:01]} Qd4+ {[%emt 0:00:02]} 21. Qf2 {[%emt 0:00:01]} Qc3 {[%emt 0:00:54]} 22. h4 {[%emt 0:02:51]} f5 {[%emt 0:00:32]} 23. h5 {[%emt 0:00:14]} Kg7 {[%emt 0:02:24]} 24. Qh4 {[%emt 0:00:30]} h6 {[%emt 0:00:02]} 25. hxg6 {[%emt 0:00:10]} fxg6 {[%emt 0:00:02]} 26. Kh2 {[%emt 0:00:11]} Re6 {[%emt 0:00:25]} 27. Rad1 {[%emt 0:00:10]} Rae8 {[%emt 0:00:45]} 28. Rf3 {[%emt 0:00:12]} Qf6 {[%emt 0:00:10]} 29. Qxf6+ {[%emt 0:00:07]} Kxf6 {[%emt 0:00:05]} 30. Bb5 {[%emt 0:00:09]} a6 {[%emt 0:00:33]} 31. Ba4 {[%emt 0:00:12]} Rd8 {[%emt 0:01:08]} 32. Rxd8 {[%emt 0:00:13]} Nxd8 {[%emt 0:00:01]} 33. Rd3 {[%emt 0:00:01]} Nf7 {[%emt 0:00:23]} 34. Rd7 {[%emt 0:00:19]} Re7 {[%emt 0:00:03]} 35. Rd2 {[%emt 0:00:08]} g5 {[%emt 0:00:15]} 36. g3 {[%emt 0:00:08]} Re4 {[%emt 0:00:43]} 37. fxg5+ {[%emt 0:00:12]} hxg5 {[%emt 0:00:04]} 38. Bb3 {[%emt 0:00:05]} Re7 {[%emt 0:00:12]} 39. Kg2 {[%emt 0:00:04]} f4 {[%emt 0:00:24]} 40. gxf4 {[%emt 0:00:06]} gxf4 {[%emt 0:00:00]} 41. Bxf7 {[%emt 0:00:08]} Rxf7 {[%emt 0:00:05]} 42. Kf3 {[%emt 0:00:01]} Ke5 {[%emt 0:00:03]} 43. c4 {[%emt 0:00:01]} Rh7 {[%emt 0:00:29]} 44. Rd5+ {[%emt 0:00:09]} Ke6 {[%emt 0:00:01]} 45. Rd8 {[%emt 0:00:32]} Rh3+ {[%emt 0:00:08]} 46. Kxf4 {[%emt 0:00:02]} Rh4+ {[%emt 0:00:09]} 47. Ke3 {[%emt 0:00:00]} Rxc4 {[%emt 0:00:03]} 48. Kd3 {[%emt 0:00:06]} b5 {[%emt 0:00:26]} 49. Rh8 {[%emt 0:00:08]} Kd5 {[%emt 0:00:22]} 50. Rh6 {[%emt 0:00:43]} Rd4+ {[%emt 0:00:09]} 51. Kc3 {[%emt 0:00:07]} Rc4+ {[%emt 0:00:01]} 52. Kd3 {[%emt 0:00:10]} Rd4+ {[%emt 0:00:02]} 53. Ke3 {[%emt 0:00:02]} Re4+ {[%emt 0:00:33]} 54. Kf3 {[%emt 0:00:01]} Re6 {[%emt 0:00:21]} 55. Rxe6 {[%emt 0:00:17]} Kxe6 {[%emt 0:00:01]} 56. Ke4 {[%emt 0:00:01]} Kd6 {[%emt 0:00:01]} 57. Kd4 {[%emt 0:00:01]} Kc6 {[%emt 0:00:01]} 58. Ke5 {[%emt 0:00:03]} Kb6 {[%emt 0:00:01]} 59. Kd5 {[%emt 0:00:20]} a5 {[%emt 0:00:01]} 60. Kd6 {[%emt 0:00:16]} axb4 {[%emt 0:00:01]} 61. axb4 {[%emt 0:00:01]} Kb7 {[%emt 0:00:07]} 62. Kc5 {[%emt 0:00:01]} Kc7 {[%emt 0:00:01]} 63. Kxb5 {[%emt 0:00:01]} Kb7 {[%emt 0:00:01]} 64. Kc5 {[%emt 0:00:01]} Kc7 {[%emt 0:00:01]} 65. b5 {[%emt 0:00:02]} Kb7 {[%emt 0:00:01]} 66. b6 {[%emt 0:00:01]} Kb8 {[%emt 0:00:10]} 67. Kc6 {[%emt 0:00:04]} Kc8 {[%emt 0:00:01]} 68. b7+ {[%emt 0:00:02]} Kb8 {[%emt 0:00:01]} 69. Kb6 {[%emt 0:00:01]} 1/2-1/2

[Event "FIDE Women World Rapid 2024"]
[Site "New York"]
[Date "2024.12.27"]
[Round "8.15"]
[White "Agrest, Inna"]
[Black "Nilssen, Ellen Fredericia"]
[Result "1/2-1/2"]
[ECO "C12"]
[WhiteElo "2155"]
[BlackElo "2181"]
[Annotator "ChessBase"]
[PlyCount "108"]
[EventDate "2024.12.14"]
[EventType "swiss"]
[EventCountry "USA"]
[SourceTitle "playchess.com"]
[Source "ChessBase"]
[SourceQuality "1"]
[TimeControl "900+10"]

1. e4 {[%emt 0:00:02]} e6 {[%emt 0:00:01]} 2. d4 {[%emt 0:00:01]} d5 {[%emt 0:00:01]} 3. Nc3 {[%emt 0:00:01]} Bb4 {[%emt 0:00:10]} 4. Nge2 {[%emt 0:00:13]} Nf6 {[%emt 0:00:07]} 5. Bg5 {[%emt 0:00:19]} h6 {[%emt 0:00:35]} 6. Bxf6 {[%emt 0:00:11]} Qxf6 {[%emt 0:00:03]} 7. a3 {[%emt 0:00:10]} Bxc3+ {[%emt 0:01:22]} 8. Nxc3 {[%emt 0:00:02]} dxe4 {[%emt 0:00:06]} 9. Nxe4 {[%emt 0:00:06]} Qe7 {[%emt 0:00:06]} 10. Qd2 {[%emt 0:00:31]} Bd7 {[%emt 0:00:55]} 11. O-O-O {[%emt 0:00:26]} Bc6 {[%emt 0:00:04]} 12. f3 {[%emt 0:02:33]} Nd7 {[%emt 0:00:35]} 13. Bd3 {[%emt 0:00:07]} O-O-O {[%emt 0:00:25]} 14. Rhe1 {[%emt 0:00:02]} Nf6 {[%emt 0:00:52]} 15. Nxf6 {[%emt 0:00:43]} Qxf6 {[%emt 0:00:03]} 16. Be4 {[%emt 0:00:03]} Bd5 {[%emt 0:00:54]} 17. Kb1 {[%emt 0:00:13]} Kb8 {[%emt 0:00:30]} 18. Qb4 {[%emt 0:00:16]} Rhe8 {[%emt 0:01:53]} 19. Bd3 {[%emt 0:04:31]} Bc6 {[%emt 0:00:52]} 20. Be4 {[%emt 0:03:09]} Bd5 {[%emt 0:00:35]} 21. Rd3 {[%emt 0:00:22]} Qe7 {[%emt 0:01:22]} 22. Qd2 {[%emt 0:00:28]} Qg5 {[%emt 0:00:16]} 23. f4 {[%emt 0:00:30]} Qf6 {[%emt 0:00:30]} 24. g3 {[%emt 0:00:11]} g5 {[%emt 0:00:24]} 25. Qg2 {[%emt 0:00:55]} c6 {[%emt 0:01:18]} 26. fxg5 {[%emt 0:00:36]} hxg5 {[%emt 0:00:02]} 27. Qd2 {[%emt 0:00:32]} Bxe4 {[%emt 0:00:53]} 28. Rxe4 {[%emt 0:00:02]} Rh8 {[%emt 0:00:02]} 29. Re5 {[%emt 0:00:44]} Rd5 {[%emt 0:00:10]} 30. Rxd5 {[%emt 0:00:21]} cxd5 {[%emt 0:01:01]} 31. Qb4 {[%emt 0:00:04]} Qd8 {[%emt 0:00:46]} 32. Rb3 {[%emt 0:00:04]} Qd7 {[%emt 0:00:27]} 33. Qd2 {[%emt 0:00:05]} Qe7 {[%emt 0:00:12]} 34. Qe2 {[%emt 0:00:35]} Ka8 {[%emt 0:00:30]} 35. Rc3 {[%emt 0:00:10]} Qd6 {[%emt 0:00:26]} 36. Qf3 {[%emt 0:00:38]} f5 {[%emt 0:00:12]} 37. Qe2 {[%emt 0:00:34]} a6 {[%emt 0:00:07]} 38. Re3 {[%emt 0:00:09]} Rh6 {[%emt 0:00:02]} 39. Re5 {[%emt 0:00:05]} Qb6 {[%emt 0:00:19]} 40. Qd2 {[%emt 0:00:02]} Ka7 {[%emt 0:00:18]} 41. Re3 {[%emt 0:00:08]} Qd6 {[%emt 0:00:23]} 42. Rb3 {[%emt 0:00:11]} f4 {[%emt 0:00:14]} 43. Ka2 {[%emt 0:00:24]} Rf6 {[%emt 0:00:30]} 44. Qe2 {[%emt 0:00:01]} Rf5 {[%emt 0:00:30]} 45. Qh5 {[%emt 0:00:19]} Qc7 {[%emt 0:00:24]} 46. Rc3 {[%emt 0:00:13]} Qf7 {[%emt 0:00:26]} 47. Qxf7 {[%emt 0:00:24]} Rxf7 {[%emt 0:00:02]} 48. gxf4 {[%emt 0:00:10]} Rxf4 {[%emt 0:00:07]} 49. Re3 {[%emt 0:00:09]} Rxd4 {[%emt 0:00:21]} 50. Rxe6 {[%emt 0:00:01]} Rd2 {[%emt 0:00:03]} 51. Re5 {[%emt 0:00:04]} g4 {[%emt 0:00:08]} 52. Kb3 {[%emt 0:00:01]} Rxh2 {[%emt 0:00:04]} 53. Rxd5 {[%emt 0:00:02]} Kb6 {[%emt 0:00:08]} 54. Rg5 {[%emt 0:00:09]} Rg2 {[%emt 0:00:02]} 1/2-1/2

[Event "FIDE Women World Rapid 2024"]
[Site "New York"]
[Date "2024.12.27"]
[Round "8.16"]
[White "Kiolbasa, Oliwia"]
[Black "Divya Deshmukh"]
[Result "0-1"]
[ECO "C02"]
[WhiteElo "2371"]
[BlackElo "2490"]
[Annotator "ChessBase"]
[PlyCount "104"]
[EventDate "2024.12.14"]
[EventType "swiss"]
[EventCountry "USA"]
[SourceTitle "playchess.com"]
[Source "ChessBase"]
[SourceQuality "1"]
[TimeControl "900+10"]

1. e4 {[%emt 0:00:02]} e6 {[%emt 0:00:05]} 2. d4 {[%emt 0:00:02]} d5 {[%emt 0:00:01]} 3. e5 {[%emt 0:00:02]} c5 {[%emt 0:00:03]} 4. c3 {[%emt 0:00:01]} Nc6 {[%emt 0:00:26]} 5. Nf3 {[%emt 0:00:02]} Qb6 {[%emt 0:00:09]} 6. Na3 {[%emt 0:00:03]} cxd4 {[%emt 0:00:43]} 7. cxd4 {[%emt 0:00:02]} Bb4+ {[%emt 0:00:19]} 8. Bd2 {[%emt 0:00:03]} Nge7 {[%emt 0:00:28]} 9. Nb5 {[%emt 0:01:54]} Bxd2+ {[%emt 0:02:03]} 10. Qxd2 {[%emt 0:00:02]} Nf5 {[%emt 0:00:01]} 11. Rd1 {[%emt 0:02:22]} Bd7 {[%emt 0:02:51]} 12. Nc3 {[%emt 0:00:24]} O-O {[%emt 0:00:29]} 13. Be2 {[%emt 0:02:10]} f6 {[%emt 0:00:10]} 14. exf6 {[%emt 0:00:44]} Rxf6 {[%emt 0:00:04]} 15. O-O {[%emt 0:00:09]} Raf8 {[%emt 0:00:15]} 16. Na4 {[%emt 0:03:09]} Qc7 {[%emt 0:00:04]} 17. Nc5 {[%emt 0:00:02]} Be8 {[%emt 0:00:39]} 18. Qc3 {[%emt 0:00:17]} Bh5 {[%emt 0:04:05]} 19. Rfe1 {[%emt 0:00:24]} Bxf3 {[%emt 0:01:27]} 20. Bxf3 {[%emt 0:00:03]} Qf7 {[%emt 0:00:02]} 21. Bg4 {[%emt 0:01:17]} Nfxd4 {[%emt 0:01:02]} 22. Rxd4 {[%emt 0:00:29]} Nxd4 {[%emt 0:00:03]} 23. Qxd4 {[%emt 0:00:05]} Rf4 {[%emt 0:00:07]} 24. Qd2 {[%emt 0:03:04]} Rxg4 {[%emt 0:00:34]} 25. Nxe6 {[%emt 0:00:03]} Re8 {[%emt 0:00:15]} 26. h3 {[%emt 0:01:00]} Rg6 {[%emt 0:01:04]} 27. Nd4 {[%emt 0:00:05]} Rxe1+ {[%emt 0:00:03]} 28. Qxe1 {[%emt 0:00:02]} h6 {[%emt 0:00:03]} 29. Qe5 {[%emt 0:00:12]} Rf6 {[%emt 0:00:12]} 30. Nf3 {[%emt 0:00:39]} Kh7 {[%emt 0:00:13]} 31. Qd4 {[%emt 0:00:16]} a6 {[%emt 0:00:34]} 32. Ne5 {[%emt 0:00:24]} Qe6 {[%emt 0:00:01]} 33. Ng4 {[%emt 0:00:02]} Rf7 {[%emt 0:00:04]} 34. Ne3 {[%emt 0:00:09]} Rd7 {[%emt 0:00:02]} 35. Kf1 {[%emt 0:00:55]} Qe4 {[%emt 0:00:05]} 36. Qxe4+ {[%emt 0:00:07]} dxe4 {[%emt 0:00:00]} 37. Ke2 {[%emt 0:00:00]} Kg6 {[%emt 0:00:08]} 38. g3 {[%emt 0:00:11]} Kf6 {[%emt 0:00:16]} 39. h4 {[%emt 0:00:01]} h5 {[%emt 0:00:24]} 40. Nc4 {[%emt 0:00:08]} b5 {[%emt 0:00:04]} 41. Ne3 {[%emt 0:00:12]} g5 {[%emt 0:00:32]} 42. hxg5+ {[%emt 0:00:06]} Kxg5 {[%emt 0:00:01]} 43. Ng2 {[%emt 0:00:05]} Rc7 {[%emt 0:00:01]} 44. Ne1 {[%emt 0:00:44]} Rc1 {[%emt 0:00:10]} 45. b3 {[%emt 0:00:09]} Ra1 {[%emt 0:00:14]} 46. Ng2 {[%emt 0:00:07]} Rxa2+ {[%emt 0:00:04]} 47. Ke3 {[%emt 0:00:01]} Rb2 {[%emt 0:00:07]} 48. Nf4 {[%emt 0:00:04]} Kf5 {[%emt 0:00:14]} 49. Nxh5 {[%emt 0:00:07]} Rxb3+ {[%emt 0:00:01]} 50. Kd4 {[%emt 0:00:02]} Rd3+ {[%emt 0:00:15]} 51. Kc5 {[%emt 0:00:01]} Rf3 {[%emt 0:00:04]} 52. Ng7+ {[%emt 0:00:11]} Ke5 {[%emt 0:00:01]} 0-1

[Event "FIDE Women World Rapid 2024"]
[Site "New York"]
[Date "2024.12.27"]
[Round "8.16"]
[White "Sahithi Varshini M"]
[Black "Fataliyeva, Ulviyya"]
[Result "0-1"]
[ECO "C84"]
[WhiteElo "2309"]
[BlackElo "2381"]
[Annotator "ChessBase"]
[PlyCount "66"]
[EventDate "2024.12.14"]
[EventType "swiss"]
[EventCountry "USA"]
[SourceTitle "playchess.com"]
[Source "ChessBase"]
[SourceQuality "1"]
[TimeControl "900+10"]

1. e4 {[%emt 0:00:04]} e5 {[%emt 0:00:01]} 2. Nf3 {[%emt 0:00:02]} Nc6 {[%emt 0:00:01]} 3. Bb5 {[%emt 0:00:01]} a6 {[%emt 0:00:00]} 4. Ba4 {[%emt 0:00:00]} Nf6 {[%emt 0:00:01]} 5. O-O {[%emt 0:00:02]} Be7 {[%emt 0:00:01]} 6. d3 {[%emt 0:00:06]} b5 {[%emt 0:00:01]} 7. Bb3 {[%emt 0:00:01]} d6 {[%emt 0:00:01]} 8. c3 {[%emt 0:00:01]} O-O {[%emt 0:00:13]} 9. a4 {[%emt 0:00:12]} Rb8 {[%emt 0:00:35]} 10. a5 {[%emt 0:00:07]} b4 {[%emt 0:00:13]} 11. Nbd2 {[%emt 0:00:02]} Be6 {[%emt 0:00:23]} 12. Nc4 {[%emt 0:00:04]} Qc8 {[%emt 0:00:04]} 13. Ng5 {[%emt 0:05:23]} Bg4 {[%emt 0:00:09]} 14. f3 {[%emt 0:00:19]} Bd7 {[%emt 0:00:03]} 15. f4 {[%emt 0:00:37]} h6 {[%emt 0:00:32]} 16. fxe5 {[%emt 0:02:00]} dxe5 {[%emt 0:00:03]} 17. Nf3 {[%emt 0:00:02]} bxc3 {[%emt 0:00:13]} 18. bxc3 {[%emt 0:00:30]} Be6 {[%emt 0:00:10]} 19. Ba4 {[%emt 0:00:42]} Bxc4 {[%emt 0:00:25]} 20. Bxc6 {[%emt 0:01:01]} Bc5+ {[%emt 0:00:26]} 21. Kh1 {[%emt 0:00:27]} Qe6 {[%emt 0:01:05]} 22. Ba4 {[%emt 0:02:49]} Rfd8 {[%emt 0:00:03]} 23. Bc2 {[%emt 0:00:00]} Nxe4 {[%emt 0:01:18]} 24. Qe2 {[%emt 0:02:04]} Nxc3 {[%emt 0:00:21]} 25. Qe1 {[%emt 0:00:23]} Bxd3 {[%emt 0:00:34]} 26. Qxc3 {[%emt 0:01:43]} Bb4 {[%emt 0:00:05]} 27. Qxd3 {[%emt 0:00:42]} Rxd3 {[%emt 0:00:02]} 28. Bxd3 {[%emt 0:00:01]} e4 {[%emt 0:00:02]} 29. Be2 {[%emt 0:00:18]} exf3 {[%emt 0:00:11]} 30. Bxf3 {[%emt 0:00:02]} Bc3 {[%emt 0:00:17]} 31. Ra4 {[%emt 0:00:08]} Rb1 {[%emt 0:00:09]} 32. Re4 {[%emt 0:00:07]} Qd7 {[%emt 0:00:41]} 33. Re2 {[%emt 0:00:18]} Bd2 {[%emt 0:00:34]} 0-1